Workbook

Sheet tips
A1: TEMPLATE TIPS
A2: Is there an easy way to jump between the expense trends summary sheet and monthly expense details?
A3: To quickly navigate to a specific month's expenses, click the associated navigation link above the chart, such as the Jan navigation link in B2. Then, to return to the expense trends worksheet, click the summary navigation link in D1.
A4: To return to this tips worksheet, in the summary worksheet, select N2. From all month worksheets, select E1.
A5: How do I add a new Expense type to the Expense Summary or new monthly expenses?
A6: The expense summary below the chart and the expense details for each month are Excel tables. To add new rows to any Excel table, do one of the following:
A7: =ROW(A1)&". If the table does not have a total row, start typing below the table and it will automatically expand when you press the enter or tab key." -> 1. If the table does not have a total row, start typing below the table and it will automatically expand when you press the enter or tab key.
A8: =ROW(A2)&". Place your cell pointer in the last cell above the total row, such as the total for the last expense, and then press the tab key." -> 2. Place your cell pointer in the last cell above the total row, such as the total for the last expense, and then press the tab key.
A9: =ROW(A3)&". Right-click in the table and on the pop up menu, point to Insert, and then click table rows above or table rows below." -> 3. Right-click in the table and on the pop up menu, point to Insert, and then click table rows above or table rows below.
A10: =ROW(A4)&". In the bottom right corner of the table, place your mouse on the table sizing handle and drag down to increase the number of available table rows." -> 4. In the bottom right corner of the table, place your mouse on the table sizing handle and drag down to increase the number of available table rows.
A11: Enter expense in the summary worksheet in the expense summary table in the expenses column.
A12: Add the expense amount for each expense type in the month worksheet that the expense applies.
A13: for example: "Expense 1" occurs in months Jan to Jun and Dec.
A14: =ROW(A1)&". Expense 1 is entered in the summary worksheet under expense in expense summary table (as the title for the expense type)" -> 1. Expense 1 is entered in the summary worksheet under expense in expense summary table (as the title for the expense type)
A15: =ROW(A2)&". For each month the expense occurs, enter the amount for the expense in the corresponding month worksheet." -> 2. For each month the expense occurs, enter the amount for the expense in the corresponding month worksheet.
A16: =ROW(A3)&". The expense type from the expense summary worksheet creates a category list for the category column in each month's worksheet." -> 3. The expense type from the expense summary worksheet creates a category list for the category column in each month's worksheet.
A17: =ROW(A4)&". Use the category list in the category column to select the corresponding expense type for the expense amount entered" -> 4. Use the category list in the category column to select the corresponding expense type for the expense amount entered
A18: =ROW(A5)&". To add new expenses for any month, add a new row to the expense summary table in the summary worksheet, then enter corresponding expense details in the month worksheet for which it applies." -> 5. To add new expenses for any month, add a new row to the expense summary table in the summary worksheet, then enter corresponding expense details in the month worksheet for which it applies.

Sheet summary
A1: EXPENSE TRENDS
B2: Jan | C2: Feb | D2: Mar | E2: Apr | F2: May | G2: Jun | H2: Jul | I2: Aug | J2: Sep | K2: Oct | L2: Nov | M2: Dec | N2: Tips
A4: Expenses | B4: Jan | C4: Feb | D4: Mar | E4: Apr | F4: May | G4: Jun | H4: Jul | I4: Aug | J4: Sep | K4: Oct | L4: Nov | M4: Dec | N4: Total | O4: Trend
A5: Expense 1 | B5: =SUMIFS(ExpJan[Amount],ExpJan[Category],ExpenseSummary[[#This Row],[Expenses]]) -> 33.00 | C5: =SUMIFS(ExpFeb[Amount],ExpFeb[Category],ExpenseSummary[[#This Row],[Expenses]]) -> 375.00 | D5: =SUMIFS(ExpMar[Amount],ExpMar[Category],ExpenseSummary[[#This Row],[Expenses]]) -> 33.00 | E5: =SUMIFS(ExpApr[Amount],ExpApr[Category],ExpenseSummary[[#This Row],[Expenses]]) -> 45.00 | F5: =SUMIFS(ExpMay[Amount],ExpMay[Category],ExpenseSummary[[#This Row],[Expenses]]) -> 375.00 | G5: =SUMIFS(ExpJun[Amount],ExpJun[Category],ExpenseSummary[[#This Row],[Expenses]]) -> 201.00 | H5: =SUMIFS(ExpJul[Amount],ExpJul[Category],ExpenseSummary[[#This Row],[Expenses]]) -> 0.00 | I5: =SUMIFS(ExpAug[Amount],ExpAug[Category],ExpenseSummary[[#This Row],[Expenses]]) -> 0.00 | J5: =SUMIFS(ExpSep[Amount],ExpSep[Category],ExpenseSummary[[#This Row],[Expenses]]) -> 0.00 | K5: =SUMIFS(ExpOct[Amount],ExpOct[Category],ExpenseSummary[[#This Row],[Expenses]]) -> 0.00 | L5: =SUMIFS(ExpNov[Amount],ExpNov[Category],ExpenseSummary[[#This Row],[Expenses]]) -> 0.00 | M5: =SUMIFS(ExpDec[Amount],ExpDec[Category],ExpenseSummary[[#This Row],[Expenses]]) -> 201.00 | N5: =SUM(ExpenseSummary[[#This Row],[Jan]:[Dec]]) -> 1,263.00
A6: Expense 2 | B6: =SUMIFS(ExpJan[Amount],ExpJan[Category],ExpenseSummary[[#This Row],[Expenses]]) -> 238.00 | C6: =SUMIFS(ExpFeb[Amount],ExpFeb[Category],ExpenseSummary[[#This Row],[Expenses]]) -> 238.00 | D6: =SUMIFS(ExpMar[Amount],ExpMar[Category],ExpenseSummary[[#This Row],[Expenses]]) -> 238.00 | E6: =SUMIFS(ExpApr[Amount],ExpApr[Category],ExpenseSummary[[#This Row],[Expenses]]) -> 123.00 | F6: =SUMIFS(ExpMay[Amount],ExpMay[Category],ExpenseSummary[[#This Row],[Expenses]]) -> 111.00 | G6: =SUMIFS(ExpJun[Amount],ExpJun[Category],ExpenseSummary[[#This Row],[Expenses]]) -> 98.00 | H6: =SUMIFS(ExpJul[Amount],ExpJul[Category],ExpenseSummary[[#This Row],[Expenses]]) -> 0.00 | I6: =SUMIFS(ExpAug[Amount],ExpAug[Category],ExpenseSummary[[#This Row],[Expenses]]) -> 0.00 | J6: =SUMIFS(ExpSep[Amount],ExpSep[Category],ExpenseSummary[[#This Row],[Expenses]]) -> 0.00 | K6: =SUMIFS(ExpOct[Amount],ExpOct[Category],ExpenseSummary[[#This Row],[Expenses]]) -> 0.00 | L6: =SUMIFS(ExpNov[Amount],ExpNov[Category],ExpenseSummary[[#This Row],[Expenses]]) -> 0.00 | M6: =SUMIFS(ExpDec[Amount],ExpDec[Category],ExpenseSummary[[#This Row],[Expenses]]) -> 440.00 | N6: =SUM(ExpenseSummary[[#This Row],[Jan]:[Dec]]) -> 1,486.00
A7: Expense 3 | B7: =SUMIFS(ExpJan[Amount],ExpJan[Category],ExpenseSummary[[#This Row],[Expenses]]) -> 110.00 | C7: =SUMIFS(ExpFeb[Amount],ExpFeb[Category],ExpenseSummary[[#This Row],[Expenses]]) -> 110.00 | D7: =SUMIFS(ExpMar[Amount],ExpMar[Category],ExpenseSummary[[#This Row],[Expenses]]) -> 110.00 | E7: =SUMIFS(ExpApr[Amount],ExpApr[Category],ExpenseSummary[[#This Row],[Expenses]]) -> 125.00 | F7: =SUMIFS(ExpMay[Amount],ExpMay[Category],ExpenseSummary[[#This Row],[Expenses]]) -> 333.00 | G7: =SUMIFS(ExpJun[Amount],ExpJun[Category],ExpenseSummary[[#This Row],[Expenses]]) -> 122.00 | H7: =SUMIFS(ExpJul[Amount],ExpJul[Category],ExpenseSummary[[#This Row],[Expenses]]) -> 0.00 | I7: =SUMIFS(ExpAug[Amount],ExpAug[Category],ExpenseSummary[[#This Row],[Expenses]]) -> 0.00 | J7: =SUMIFS(ExpSep[Amount],ExpSep[Category],ExpenseSummary[[#This Row],[Expenses]]) -> 0.00 | K7: =SUMIFS(ExpOct[Amount],ExpOct[Category],ExpenseSummary[[#This Row],[Expenses]]) -> 0.00 | L7: =SUMIFS(ExpNov[Amount],ExpNov[Category],ExpenseSummary[[#This Row],[Expenses]]) -> 0.00 | M7: =SUMIFS(ExpDec[Amount],ExpDec[Category],ExpenseSummary[[#This Row],[Expenses]]) -> 122.00 | N7: =SUM(ExpenseSummary[[#This Row],[Jan]:[Dec]]) -> 1,032.00
A8: Expense 4 | B8: =SUMIFS(ExpJan[Amount],ExpJan[Category],ExpenseSummary[[#This Row],[Expenses]]) -> 426.00 | C8: =SUMIFS(ExpFeb[Amount],ExpFeb[Category],ExpenseSummary[[#This Row],[Expenses]]) -> 84.00 | D8: =SUMIFS(ExpMar[Amount],ExpMar[Category],ExpenseSummary[[#This Row],[Expenses]]) -> 84.00 | E8: =SUMIFS(ExpApr[Amount],ExpApr[Category],ExpenseSummary[[#This Row],[Expenses]]) -> 426.00 | F8: =SUMIFS(ExpMay[Amount],ExpMay[Category],ExpenseSummary[[#This Row],[Expenses]]) -> 125.00 | G8: =SUMIFS(ExpJun[Amount],ExpJun[Category],ExpenseSummary[[#This Row],[Expenses]]) -> 187.00 | H8: =SUMIFS(ExpJul[Amount],ExpJul[Category],ExpenseSummary[[#This Row],[Expenses]]) -> 0.00 | I8: =SUMIFS(ExpAug[Amount],ExpAug[Category],ExpenseSummary[[#This Row],[Expenses]]) -> 0.00 | J8: =SUMIFS(ExpSep[Amount],ExpSep[Category],ExpenseSummary[[#This Row],[Expenses]]) -> 0.00 | K8: =SUMIFS(ExpOct[Amount],ExpOct[Category],ExpenseSummary[[#This Row],[Expenses]]) -> 0.00 | L8: =SUMIFS(ExpNov[Amount],ExpNov[Category],ExpenseSummary[[#This Row],[Expenses]]) -> 0.00 | M8: =SUMIFS(ExpDec[Amount],ExpDec[Category],ExpenseSummary[[#This Row],[Expenses]]) -> 187.00 | N8: =SUM(ExpenseSummary[[#This Row],[Jan]:[Dec]]) -> 1,519.00
A9: Expense 5 | B9: =SUMIFS(ExpJan[Amount],ExpJan[Category],ExpenseSummary[[#This Row],[Expenses]]) -> 54.00 | C9: =SUMIFS(ExpFeb[Amount],ExpFeb[Category],ExpenseSummary[[#This Row],[Expenses]]) -> 54.00 | D9: =SUMIFS(ExpMar[Amount],ExpMar[Category],ExpenseSummary[[#This Row],[Expenses]]) -> 109.00 | E9: =SUMIFS(ExpApr[Amount],ExpApr[Category],ExpenseSummary[[#This Row],[Expenses]]) -> 98.00 | F9: =SUMIFS(ExpMay[Amount],ExpMay[Category],ExpenseSummary[[#This Row],[Expenses]]) -> 33.00 | G9: =SUMIFS(ExpJun[Amount],ExpJun[Category],ExpenseSummary[[#This Row],[Expenses]]) -> 441.00 | H9: =SUMIFS(ExpJul[Amount],ExpJul[Category],ExpenseSummary[[#This Row],[Expenses]]) -> 0.00 | I9: =SUMIFS(ExpAug[Amount],ExpAug[Category],ExpenseSummary[[#This Row],[Expenses]]) -> 0.00 | J9: =SUMIFS(ExpSep[Amount],ExpSep[Category],ExpenseSummary[[#This Row],[Expenses]]) -> 0.00 | K9: =SUMIFS(ExpOct[Amount],ExpOct[Category],ExpenseSummary[[#This Row],[Expenses]]) -> 0.00 | L9: =SUMIFS(ExpNov[Amount],ExpNov[Category],ExpenseSummary[[#This Row],[Expenses]]) -> 0.00 | M9: =SUMIFS(ExpDec[Amount],ExpDec[Category],ExpenseSummary[[#This Row],[Expenses]]) -> 99.00 | N9: =SUM(ExpenseSummary[[#This Row],[Jan]:[Dec]]) -> 888.00
A10: Total | B10: =SUBTOTAL(109,ExpenseSummary[Jan]) -> 861.00 | C10: =SUBTOTAL(109,ExpenseSummary[Feb]) -> 861.00 | D10: =SUBTOTAL(109,ExpenseSummary[Mar]) -> 574.00 | E10: =SUBTOTAL(109,ExpenseSummary[Apr]) -> 817.00 | F10: =SUBTOTAL(109,ExpenseSummary[May]) -> 977.00 | G10: =SUBTOTAL(109,ExpenseSummary[Jun]) -> 1,049.00 | H10: =SUBTOTAL(109,ExpenseSummary[Jul]) -> 0.00 | I10: =SUBTOTAL(109,ExpenseSummary[Aug]) -> 0.00 | J10: =SUBTOTAL(109,ExpenseSummary[Sep]) -> 0.00 | K10: =SUBTOTAL(109,ExpenseSummary[Oct]) -> 0.00 | L10: =SUBTOTAL(109,ExpenseSummary[Nov]) -> 0.00 | M10: =SUBTOTAL(109,ExpenseSummary[Dec]) -> 1,049.00 | N10: =SUBTOTAL(109,ExpenseSummary[Total]) -> 6,188.00

Sheet jan
A1: JANUARY EXPENSES | D1: Summary | E1: Tips
A2: Date | B2: PO# | C2: Amount | D2: Category | E2: Description
A3: =DATE(YEAR(TODAY()),1,4) -> 2022-01-04 | B3: A-12345 | C3: 33.00 | D3: Expense 1 | E3: Supplies
A4: =DATE(YEAR(TODAY()),1,5) -> 2022-01-05 | B4: A-12346 | C4: 238.00 | D4: Expense 2
C5: 342.00 | D5: Expense 4
C6: 110.00 | D6: Expense 3
C7: 84.00 | D7: Expense 4
C8: 54.00 | D8: Expense 5
A9: Total | C9: =SUBTOTAL(109,ExpJan[Amount]) -> 861.00

Sheet feb
A1: FEBRUARY EXPENSES | D1: Summary | E1: Tips
A2: Date | B2: PO# | C2: Amount | D2: Category | E2: Description
A3: =DATE(YEAR(TODAY()),2,3) -> 2022-02-03 | B3: A-12345 | C3: 33.00 | D3: Expense 1 | E3: Supplies
A4: =DATE(YEAR(TODAY()),2,4) -> 2022-02-04 | B4: A-12346 | C4: 238.00 | D4: Expense 2
C5: 342.00 | D5: Expense 1
C6: 110.00 | D6: Expense 3
C7: 84.00 | D7: Expense 4
C8: 54.00 | D8: Expense 5
A9: Total | C9: =SUBTOTAL(109,ExpFeb[Amount]) -> 861.00

Sheet mar
A1: MARCH EXPENSES | D1: Summary | E1: Tips
A2: Date | B2: PO# | C2: Amount | D2: Category | E2: Description
A3: =DATE(YEAR(TODAY()),3,5) -> 2022-03-05 | B3: A-12345 | C3: 33.00 | D3: Expense 1 | E3: Supplies
A4: =DATE(YEAR(TODAY()),3,6) -> 2022-03-06 | B4: A-12346 | C4: 238.00 | D4: Expense 2
C5: 55.00 | D5: Expense 5
C6: 110.00 | D6: Expense 3
C7: 84.00 | D7: Expense 4
C8: 54.00 | D8: Expense 5
A9: Total | C9: =SUBTOTAL(109,ExpMar[Amount]) -> 574.00

Sheet apr
A1: APRIL EXPENSES | D1: Summary | E1: Tips
A2: Date | B2: PO# | C2: Amount | D2: Category | E2: Description
A3: =DATE(YEAR(TODAY()),4,4) -> 2022-04-04 | B3: A-12345 | C3: 45.00 | D3: Expense 1 | E3: Supplies
A4: =DATE(YEAR(TODAY()),4,8) -> 2022-04-08 | B4: A-12346 | C4: 123.00 | D4: Expense 2
C5: 342.00 | D5: Expense 4
C6: 125.00 | D6: Expense 3
C7: 84.00 | D7: Expense 4
C8: 98.00 | D8: Expense 5
A9: Total | C9: =SUBTOTAL(109,ExpApr[Amount]) -> 817.00

Sheet may
A1: MAY EXPENSES | D1: Summary | E1: Tips
A2: Date | B2: PO# | C2: Amount | D2: Category | E2: Description
A3: =DATE(YEAR(TODAY()),5,3) -> 2022-05-03 | B3: A-12345 | C3: 33.00 | D3: Expense 1 | E3: Supplies
A4: =DATE(YEAR(TODAY()),5,8) -> 2022-05-08 | B4: A-12346 | C4: 111.00 | D4: Expense 2
C5: 342.00 | D5: Expense 1
C6: 333.00 | D6: Expense 3
C7: 125.00 | D7: Expense 4
C8: 33.00 | D8: Expense 5
A9: Total | C9: =SUBTOTAL(109,ExpMay[Amount]) -> 977.00

Sheet jun
A1: JUNE EXPENSES | D1: Summary | E1: Tips
A2: Date | B2: PO# | C2: Amount | D2: Category | E2: Description
A3: =DATE(YEAR(TODAY()),6,7) -> 2022-06-07 | B3: A-12345 | C3: 201.00 | D3: Expense 1 | E3: Supplies
A4: =DATE(YEAR(TODAY()),6,8) -> 2022-06-08 | B4: A-12346 | C4: 98.00 | D4: Expense 2
C5: 342.00 | D5: Expense 5
C6: 122.00 | D6: Expense 3
C7: 187.00 | D7: Expense 4
C8: 99.00 | D8: Expense 5
A9: Total | C9: =SUBTOTAL(109,ExpJun[Amount]) -> 1,049.00

Sheet jul
A1: JULY EXPENSES | D1: Summary | E1: Tips
A2: Date | B2: PO# | C2: Amount | D2: Category | E2: Description
A3: =DATE(YEAR(TODAY()),7,9) -> 2022-07-09 | B3: A-12345 | D3: Expense 1 | E3: Supplies
A4: =DATE(YEAR(TODAY()),7,14) -> 2022-07-14 | B4: A-12346 | D4: Expense 2
D5: Expense 2
D6: Expense 3
D7: Expense 4
D8: Expense 5
A9: Total | C9: =SUBTOTAL(109,ExpJul[Amount]) -> 0.00

Sheet aug
A1: AUGUST EXPENSES | D1: Summary | E1: Tips
A2: Date | B2: PO# | C2: Amount | D2: Category | E2: Description
A3: =DATE(YEAR(TODAY()),8,8) -> 2022-08-08 | B3: A-12345 | D3: Expense 1 | E3: Supplies
A4: =DATE(YEAR(TODAY()),8,9) -> 2022-08-09 | B4: A-12346 | D4: Expense 2
D5: Expense 2
D6: Expense 3
D7: Expense 4
D8: Expense 5
A9: Total | C9: =SUBTOTAL(109,ExpAug[Amount]) -> 0.00

Sheet sep
A1: SEPTEMBER EXPENSES | D1: Summary | E1: Tips
A2: Date | B2: PO# | C2: Amount | D2: Category | E2: Description
A3: =DATE(YEAR(TODAY()),9,9) -> 2022-09-09 | B3: A-12345 | D3: Expense 1 | E3: Supplies
A4: =DATE(YEAR(TODAY()),9,15) -> 2022-09-15 | B4: A-12346 | D4: Expense 2
D5: Expense 2
D6: Expense 3
D7: Expense 4
D8: Expense 5
A9: Total | C9: =SUBTOTAL(109,ExpSep[Amount]) -> 0.00

Sheet oct
A1: OCTOBER EXPENSES | D1: Summary | E1: Tips
A2: Date | B2: PO# | C2: Amount | D2: Category | E2: Description
A3: =DATE(YEAR(TODAY()),10,10) -> 2022-10-10 | B3: A-12345 | D3: Expense 1 | E3: Supplies
A4: =DATE(YEAR(TODAY()),10,21) -> 2022-10-21 | B4: A-12346 | D4: Expense 2
D5: Expense 2
D6: Expense 3
D7: Expense 4
D8: Expense 5
A9: Total | C9: =SUBTOTAL(109,ExpOct[Amount]) -> 0.00

Sheet nov
A1: NOVEMBER EXPENSES | D1: Summary | E1: Tips
A2: Date | B2: PO# | C2: Amount | D2: Category | E2: Description
A3: =DATE(YEAR(TODAY()),11,14) -> 2022-11-14 | B3: A-12345 | D3: Expense 1 | E3: Supplies
A4: =DATE(YEAR(TODAY()),11,21) -> 2022-11-21 | B4: A-12346 | D4: Expense 2
D5: Expense 2
D6: Expense 3
D7: Expense 4
D8: Expense 5
A9: Total | C9: =SUBTOTAL(109,ExpNov[Amount]) -> 0.00

Sheet dec
A1: DECEMBER EXPENSES | D1: Summary | E1: Tips
A2: Date | B2: PO# | C2: Amount | D2: Category | E2: Description
A3: =DATE(YEAR(TODAY()),12,2) -> 2022-12-02 | B3: A-12345 | C3: 201.00 | D3: Expense 1 | E3: Supplies
A4: =DATE(YEAR(TODAY()),12,24) -> 2022-12-24 | B4: A-12346 | C4: 98.00 | D4: Expense 2
C5: 342.00 | D5: Expense 2
C6: 122.00 | D6: Expense 3
C7: 187.00 | D7: Expense 4
C8: 99.00 | D8: Expense 5
A9: Total | C9: =SUBTOTAL(109,ExpDec[Amount]) -> 1,049.00
